Cogmind - Beta 16 @@@ ROGUE MODE // 2025.10.26 @ 20:43:19 Player: SSMR Result: Destroyed by as-88606 with Assembled Maul Performance ------------- Evolutions (0) 0 Regions Visited (2) 400 Robots Destroyed (9) 45 Value Destroyed (165) 165 Prototype IDs (3) 60 Alien Tech Used (0) 0 Bonus (0) 0 TOTAL SCORE: 670 Bonus ------- None Cogmind --------- Core Integrity 0/250 Matter 255/300 Energy 56/100 System Corruption 2% Temperature Cool (0) Movement Core (350) Ox6 Location -10/Mines Parts ------- > --- POWER (1) -------- (None) > --- PROPULSION (2) --- (None) > --- UTILITY (2) ------ Large Storage Unit > --- WEAPON (2) ------- (None) > --- INVENTORY (15) --- Wheel Compact Wheel Heat Sink Large Storage Unit Visual Processing Unit Experimental Sensor Array Targeting Computer Improved EM Shotgun Improved EM Shotgun Small Laser Assault Rifle Peak State ------------ > --- POWER ------------ Light Nuclear Core > --- PROPULSION ------- Aluminum Leg > --- UTILITY ---------- Large Storage Unit Shield Generator > --- WEAPON ----------- Improved EM Shotgun Improved EM Shotgun > --- INVENTORY -------- Wheel Compact Wheel Heat Sink Large Storage Unit Visual Processing Unit Experimental Sensor Array Targeting Computer Improved EM Shotgun Improved EM Shotgun Small Laser Assault Rifle [Rating: 15] Favorites ----------- Power Ion Engine Engine Ion Engine Power Core Light Nuclear Core Propulsion Aluminum Leg Leg Aluminum Leg Utility Large Storage Unit Device Terrain Scanner Storage Large Storage Unit Protection Light Armor Plating Weapon Improved EM Shotgun Energy Gun Improved EM Shotgun Launcher Grenade Launcher Build | -11 -10 -10 ------- Run | Yrd Mat Min Slots Evolved . | . . . Power . | . . . Propulsion . | . . . Utility . | . . . Weapon . | . . . Parts Attached 20 | 7 9 4 Power 2 | 1 . 1 Engine 1 | 1 . . Core 1 | . . 1 Reactor . | . . . Propulsion 2 | 2 . . Treads . | . . . Leg 2 | 2 . . Wheel . | . . . Hover . | . . . Flight . | . . . Utility 8 | 2 5 1 Device 4 | 1 3 . Storage 3 | 1 2 . Processor . | . . . Hackware . | . . . Protection 1 | . . 1 Artifact . | . . . Weapon 8 | 2 4 2 Energy Gun 7 | 2 4 1 Energy Cannon . | . . . Ballistic Gun . | . . . Ballistic Cannon . | . . . Launcher 1 | . . 1 Special Weapon . | . . . Impact Weapon . | . . . Slashing Weapon . | . . . Piercing Weapon . | . . . Special Melee Weapon . | . . . Unidentified Prototypes 1 | . 1 . Parts Lost 10 | . . 10 Power 2 | . . 2 Propulsion 2 | . . 2 Utility 3 | . . 3 Weapon 3 | . . 3 Highest Loss Streak 10 | . . 10 To Critical Strikes . | . . . Average Backups 11 | 3 10 14 Power . | . 1 . Propulsion 2 | 1 2 2 Utility 3 | . 3 6 Weapon 4 | . 4 4 Tool/Special . | . . . Unused Backups 12 | . 4 8 Power 1 | . 1 . Propulsion 5 | . 3 2 Utility 4 | . . 4 Weapon 2 | . . 2 Tool/Special . | . . . Average Slot Usage (%) 99 | . 99 97 Engine 13 | . 14 13 Leg 27 | . 28 26 Device 11 | . 10 13 Storage 16 | . 17 14 Energy Gun 27 | . 27 27 Peak Build Rating 15 | 7 13 15 Average Rating 11 | 5 11 13 On Entrance 6 | . 7 13 Avg Prop Armor Cover (%) . | . . . Naked Turns . | . . . Heaviest Build 33 | 13 33 33 Greatest Support 20 | 20 20 20 Greatest Overweight (x) 8 | 3 1 8 Average Overweight (x) . | . . 1 Largest Inventory Capacity 15 | 8 15 15 Average Capacity 13 | 7 13 15 Most Carried 15 | 7 15 15 Average Carried 11 | 3 10 14 Final Capacity 15 | 8 15 15 Final Carried 14 | 6 14 11 Class Distribution -------------------- 100% | Mutant Dominant Class ---------------- Mutant | -10/Materials Mutant | -10/Mines Resources | -11 -10 -10 ----------- Run | Yrd Mat Min Matter Collected 370 | 266 104 . Remotely . | . . . Salvage Created 322 | 29 271 22 Parts 21 | 7 14 . Haulers Intercepted 2 | . 2 . Recyclers Shooed . | . . . Parts Field Recycled . | . . . Retrieved Matter . | . . . Parts Self-Destructed . | . . . Prevented . | . . . Parts Restored . | . . . Kills | -11 -10 -10 ------- Run | Yrd Mat Min Combat Hostiles Destroyed 14 | . 3 11 Guns 2 | . 2 . AOE 12 | . 1 11 Classes Destroyed 5 | 1 3 1 Tunneler 2 | 2 . . Hauler 2 | . 2 . Watcher 2 | . 2 . Grunt 3 | . 3 . Assembled 11 | . . 11 Best Kill Streak 11 | 2 2 11 Combat Bots Only 11 | . 2 11 Max Kills in Single Turn 4 | 1 1 4 Gunslinging . | . . . Exploded 4 | . 1 4 Melee . | . . . Uniques/NPCs Destroyed . | . . . Combat | -11 -10 -10 -------- Run | Yrd Mat Min Hostile Shots Fired 87 | . 15 72 Missed 26 | . 3 23 Hits 61 | . 12 49 Melee 10 | . . 10 Projectile 51 | . 12 39 Critical Strikes 1 | . . 1 Damage Taken 1068 | . 185 883 Core 258 | . 46 212 Absorbed by Shields 37 | . . 37 Core Remaining (%) 100 | 100 . . Volleys Fired 25 | 3 18 4 Largest 2 | 2 2 1 Hottest 90 | 80 90 30 Shots Fired 46 | 6 36 4 Gun 42 | 6 36 . Cannon . | . . . Launcher 4 | . . 4 Special . | . . . Kinetic . | . . . Thermal 20 | 6 14 . Explosive 4 | . . 4 Electromagnetic 22 | . 22 . Robot Hit Streak 11 | 4 11 1 Robot Miss Streak 3 | . 3 2 Penetration Max . | . . . Secondary Targets 1 | . 1 . Max Gunslinging Chain 1 | . 1 . Shots Hit Robots 31 | 4 26 1 Core Hits 52 | 2 14 36 Critical Kills . | . . . Critical Parts Destroyed . | . . . Critical Strikes . | . . . Melee Attacks . | . . . Impact . | . . . Slashing . | . . . Piercing . | . . . Sneak Attacks . | . . . Combat Hostiles . | . . . Follow-up Attacks . | . . . Damage Inflicted 1327 | 41 460 826 Guns 431 | 41 390 . Cannons . | . . . Explosions 894 | . 70 824 Melee . | . . . Ramming 2 | . . 2 Kinetic . | . . . Thermal 215 | 41 174 . Explosive 824 | . . 824 Electromagnetic 286 | . 286 . Impact . | . . . Slashing . | . . . Piercing . | . . . Highest Corruption 2 | . . 2 Average Corruption 2 | . . 2 Corruption Purged . | . . . Corruption Blocked . | . . . Effects 1 | . . 1 Matter Fused 1 | . . 1 Overload Shots . | . . . Overflow Damage 11 | . . 11 Projectiles . | . . . Explosions 11 | . . 11 Melee . | . . . Knockbacks . | . . . Impact . | . . . Kinetic . | . . . Secondary . | . . . Self-Inflicted Damage 97 | . 34 63 Shots 4 | . 1 3 Rammed . | . . . Targets Rammed 1 | . . 1 Kicked 1 | . . 1 Crushed . | . . . Highest Temperature 198 | 36 198 18 Average Temperature 57 | 22 66 13 Received Heat Transfer 110 | . 90 20 Siege Activations . | . . . Martial Activations . | . . . Shielding Activations . | . . . Robots Disrupted . | . . . Combat Hostiles . | . . . Robots Corrupted . | . . . Combat Hostiles . | . . . Parts Fried . | . . . Impact Corruptions . | . . . Robots Melted . | . . . Combat Hostiles . | . . . Parts Melted . | . . . Heat Transferred 425 | 100 325 . Parts Sabotaged . | . . . Parts Stolen . | . . . Parts Stripped . | . . . Power Chain Reactions 1 | . 1 . Alert | -11 -10 -10 ------- Run | Yrd Mat Min Maximum Alert Level . | . . . Low Security (%) 100 | 100 100 100 Level 1 . | . . . Level 2 . | . . . Level 3 . | . . . Level 4 . | . . . Level 5 . | . . . High Security . | . . . Max Security . | . . . Peak Influence 50 | 10 50 15 Initial . | . . . Average 4 | 1 7 . Influence Increases 149 | 10 119 20 Destroy 0b10 Robot/C 60 | . 60 . Destroy 0b10 Robot/NC 30 | 10 20 . Destroy Leader 18 | . 18 . Successful Hack 15 | . 15 . Destroy Structure 26 | . 6 20 Influence Decreases 149 | 10 119 20 Time Decay 139 | 10 119 10 Lost Part 10 | . . 10 Squads Dispatched . | . . . Investigation . | . . . Extermination . | . . . Reinforcement . | . . . Assault . | . . . Garrison . | . . . Intercept . | . . . Searches Triggered . | . . . Construction Impeded . | . . . Haulers Reinforced . | . . . Active Scanning Responses . | . . . Cargo Convoy Interrupts . | . . . Stealth | -11 -10 -10 --------- Run | Yrd Mat Min Distress Signals . | . . . Communications Jammed . | . . . Distress Signals . | . . . Times Spotted 26 | . 7 19 Peak Tracking Total 17 | . 2 17 Tactical Retreats . | . . . Traps | -11 -10 -10 ------- Run | Yrd Mat Min Traps Triggered . | . . . Indirectly . | . . . Trap Hack Attempts . | . . . Triggered . | . . . Disarmed . | . . . Reprogrammed . | . . . Reused . | . . . Traps Extracted . | . . . Installed . | . . . Triggered . | . . . Machines | -11 -10 -10 ---------- Run | Yrd Mat Min Machines Disabled . | . . . Max in Single Turn . | . . . Machines Repaired . | . . . Machines Dismantled . | . . . Machines Sabotaged . | . . . Overloaded Fab Kills . | . . . Hacking | -11 -10 -10 --------- Run | Yrd Mat Min Machines Accessed 2 | . 2 . Terminals 2 | . 2 . Fabricators . | . . . Repair Stations . | . . . Recycling Units . | . . . Scanalyzers . | . . . Garrison Access . | . . . Total Hacks 10 | . 10 . Successful 6 | . 6 . Failed 4 | . 4 . Catastrophic . | . . . Database Lockouts . | . . . Manual 7 | . 7 . Terminals 10 | . 10 . Fabricators . | . . . Repair Stations . | . . . Recycling Units . | . . . Scanalyzers . | . . . Garrison Access . | . . . Terminal Hacks 3 | . 3 . Robot Analysis 1 | . 1 . Prototype ID Bank 1 | . 1 . Zone Layout 1 | . 1 . Fabricator Hacks . | . . . Repair Station Hacks . | . . . Recycling Unit Hacks . | . . . Scanalyzer . | . . . Garrison Access Hacks . | . . . Unauthorized Hacks 3 | . 3 . Terminals 3 | . 3 . Assimilate 1 | . 1 . Botnet 2 | . 2 . Fabricators . | . . . Repair Stations . | . . . Recycling Units . | . . . Scanalyzers . | . . . Garrison Access . | . . . Data Cores Recovered . | . . . Used . | . . . Hacking Detections 1 | . 1 . Full Trace Events . | . . . Feedback Events . | . . . Feedback Blocked . | . . . Robot Schematics Acquired . | . . . Robots Built . | . . . Authchips . | . . . Time . | . . . Total Robot Build Rating . | . . . Part Schematics Acquired . | . . . Parts Built . | . . . Authchips . | . . . Time . | . . . Total Part Build Rating . | . . . Part Studies Acquired . | . . . Parts Repaired . | . . . Time . | . . . Parts Recycled . | . . . Recycled Matter . | . . . Retrieved Matter . | . . . Retrieved Components . | . . . Parts Scanalyzed . | . . . Part Schematics Acquired . | . . . Parts Damaged . | . . . Bothacking | -11 -10 -10 ------------ Run | Yrd Mat Min Used RIF Installer . | . . . Robots Hacked . | . . . Non-combat . | . . . Combat . | . . . Robot Hacks Applied . | . . . Relay Couplers Released . | . . . Fabnet Peak Effective % . | . . . Robots Rewired . | . . . Allies Hacked . | . . . Hacks Repelled . | . . . Allies | -11 -10 -10 -------- Run | Yrd Mat Min Total Allies . | . . . Largest Group . | . . . Highest-Rated Group . | . . . Highest-Rated Ally . | . . . Total Orders . | . . . Ally Attacks . | . . . Total Damage . | . . . Kills . | . . . Allies Corrupted . | . . . Allies Melted . | . . . Intel | -11 -10 -10 ------- Run | Yrd Mat Min Active Infowar (turns) 609 | 13 264 332 Terrain 584 | . 252 332 Seismic 25 | 13 12 . Robot Analysis Total 1 | . 1 . Derelict Logs Recovered 1 | . . 1 Drone Launches . | . . . Drone Recoveries . | . . . Exploration | -11 -10 -10 ------------- Run | Yrd Mat Min Turns Passed 1092 | 90 643 359 Spaces Moved 516 | 51 289 176 Core 13 | 11 . 2 Treads . | . . . Legs 503 | 40 289 174 Wheels . | . . . Hover . | . . . Flight . | . . . Fastest Speed 50 | 50 120 190 Average Speed 183 | 120 187 194 Slowest Speed 450 | 200 190 450 Overloaded Moves . | . . . Propulsion Burnouts . | . . . Robots Hopped . | . . . Potential Cave-ins . | . . . Cave-ins Triggered . | . . . Exploration Rate (%) 36 | 4 51 55 Regions Visited 2 Branch Regions 1 Pre-discovered Areas . | . . . Known Exits Taken . | . . . Unknown Exits Taken 2 | 1 1 . Scrap Searched 1 | . . 1 Spaces Dug . | . . . Terrain Destroyed 36 | . 6 30 Melee . | . . . Projectile . | . . . AOE 36 | . 6 30 Terrain Rammed . | . . . Walls Destroyed . | . . . Machines Disabled . | . . . Actions | -11 -10 -10 --------- Run | Yrd Mat Min Total 619 | 73 359 187 Wait 9 | . 9 . Move 514 | 50 288 176 Hop . | . . . Pick Up 32 | 13 18 1 Fast Attach 1 | . 1 . Attach 16 | 7 5 4 Detach 5 | . 5 . Swap 5 | . 4 1 Drop 11 | . 11 . Fire 25 | 3 18 4 Melee . | . . . Ram . | . . . Kick 1 | . . 1 Crush . | . . . Escape Stasis . | . . . Rewire . | . . . Trap . | . . . Miscellaneous . | . . . Route ------- -11/Scrapyard -10/Materials (discovered 2 exits: [*Mat] / [*Min]) -10/Mines History --------- Turn | Location | Event 42 | -11/Scrapyard | Discovered new exit (range 15) 91 | -11/Scrapyard | Entered Materials 317 | -10/Materials | Build established: Mutant 462 | -10/Materials | Discovered new exit (range 13) 683 | -10/Materials | Discovered new exit (range 13) 734 | -10/Materials | Entered Mines 845 | -10/Mines | Found a damaged Exp. Sensor Array with a note attached 848 | -10/Mines | Found Prototype Device 982 | -10/Mines | Learned Materials non-interactive machine intel 1040 | -10/Mines | Assembled infested the area 1076 | -10/Mines | Core integrity fell below 50% 1088 | -10/Mines | Core integrity fell below 20% 1093 | -10/Mines | Destroyed by as-88606 with Assembled Maul Last Messages --------------- 01072_ as-76222 destroyed. 01072_ as-24594 destroyed. 01072_ as-86312 destroyed. 01074_ as-24795 destroyed. 01074_ as-95538 destroyed. 01074_ Lgt. Armor Plating destroyed. 01074_ Destroyed Lgt. Armor Plating. 01074_ as-76880 destroyed. 01075_ Knocked back. 01075_ Aluminum Leg destroyed. 01075_ Grenade Launcher destroyed. [Achievement: There's More Where That Came From] 01082_ Lgt. Nuclear Core destroyed. 01082_ System corrupted by crushing effect (+2). 01083_ Shield Generator destroyed. 01083_ Aluminum Leg destroyed. 01085_ System corrupted: Matter fused (-5). 01085_ Imp. EM Shotgun destroyed. 01088_ as-83838 destroyed. 01090_ Imp. EM Shotgun destroyed. Map ----- +----------------------------------------------------+ | | | | | | | | | | | | | | | | | | | | | ?????????????????????????????????????????????????? | | ?????????????????????????????????????????????????? | | ?????????????????????????????????????????????????? | | ?????????????????????????????????????????????????? | | ?????????????????????????????????????????????????? | | ????????????????????????????????????#????????????? | | ?????????????????????????????????????????????????? | | ?????????????????????????????????????????#???????? | | ???????????????????????????????????????? ??????? | | ??????????????????????????????????????? ??????? | | ??????????????????????#??????#######?? ?????? | | ????????????????????????????## ## ?????? | | ????????????????#??????????## #??????? | | ???????????????????????????# a#???????? | | ???????????#?#?????????##### a a #????????? | | ??????????????#?#??????# @a #????????? | | ???????????????????????# ## a % #?????????? | | ??????????##?????##??? ### a ###?????????? | | ?????????????????????###???## ## ##???????????? | | ??????????#???????#?????????# #???#???#????????? | | ?????????????#??????????#???## ###??#????????????? | | ????????###??????#???????#???# #??? #????????????? | | ????????# ######???????#???# #?? #?????#??????? | | ????????# ! #??????????## ### ##???????????? | | ????????# !%! #????#??????# #????????????? | | #??#????## #### #??####?????# #????????????? | | ####?????##???# #?## ##??#?# #####????????????? | | ##???#?????# ### ###??# #????????????????? | | #???#?#??## #???# #????????????????? | | #?????????# ##### #????????????????? | | ###???????######## ## #????????????????? | | ##????????????????# ##?????#???#?????? | | ##?????????????????## ##?#????????????? | | ##?#?#???????????????## #???#??#????????? | | #????????????????????### #???????????????? | | ???#??#?#?????#???????## ##???????????????? | | ?#?????#???#???????##??## ##???????????????? | | #???????????##?????????## #???????????????? | | #??????????#??????????## #?#?????????????? | | #????#???????????????## ##???????????????? | +----------------------------------------------------+ Best States ------------- Heat Dissipation 35 Energy Generation 14 Energy Capacity 250 Matter Stores 300 Matter Capacity 300 Sight Range 16 Terrain Scan Range 14 Terrain Scan Density 10 Armor Coverage 150 Evasion (%) 55 Item Schematics ----------------- None Robot Schematics ------------------ None Fabricated ------------ Nothing Repaired ---------- Nothing Studied --------- None Alien Tech Used ----------------- None Achievements -------------- For Emergencies Only Organ Harvest There's More Where That Came From Challenges ------------ None Game ------ Seed ReactionImprovedMediator Manual? 0 Play Time 00:28:12 Cumulative 54.4 hours Start 2025.10.26 @ 20:06:09 End 2025.10.26 @ 20:43:19 Sessions 1 Manual Loads 0 Difficulty Rogue Special Mode None Game No. 62 Rogue 43 Adventurer 19 Explorer 0 Win Type - Total 2 Types 2/0/0/0/0/0/0/0/0/0 Lore% 13 Gallery% 34 Achievement% 19 Wizard Run 0 Options --------- Layout 1 ASCII 0 Keyboard 0 Movement Mouse Keybinds 0 Fullscreen 0 Font 20/SmallcapsGlow Map View 64x42 Zoom Use 24% Tactical HUD 1 Map Filters NONE Filters NONE Steam 1 RUN: cb80a4a4-6f13-4165-8f10-8f198a3d2a33